[Event "Rapid Tournament (RAP)"]
[Site "Biel, Switzerland"]
[Date "2026.07.12"]
[Round "7.26"]
[White "Bonanomi, Silvan"]
[Black "Arntz, Christoph"]
[Result "0-1"]
[TimeControl "15 + 5"]
[WhiteTitle "-"]
[BlackTitle "-"]
[WhiteFideId "1352644"]
[BlackFideId "16257723"]
[WhiteElo "1867"]
[BlackElo "1999"]

1. e4 {[%clk 00:15:09]} {[%emt 00:00:11]} c5 {[%clk 00:15:03]} {[%emt
00:00:08]} 2. c3 {[%clk 00:15:12]} {[%emt 00:00:02]} e6 {[%clk 00:14:53]}
{[%emt 00:00:14]} 3. d4 {[%clk 00:15:14]} {[%emt 00:00:03]} cxd4 {[%clk
00:14:51]} {[%emt 00:00:08]} 4. cxd4 {[%clk 00:15:13]} {[%emt 00:00:06]} Nf6
{[%clk 00:14:47]} {[%emt 00:00:07]} 5. Nf3 {[%clk 00:14:55]} {[%emt 00:00:24]}
Nxe4 {[%clk 00:14:04]} {[%emt 00:00:48]} 6. Bd3 {[%clk 00:14:56]} {[%emt
00:00:03]} Bb4+ {[%clk 00:13:48]} {[%emt 00:00:21]} 7. Bd2 {[%clk 00:14:10]}
{[%emt 00:00:51]} Nxd2 {[%clk 00:13:04]} {[%emt 00:00:48]} 8. Nbxd2 {[%clk
00:14:13]} {[%emt 00:00:03]} O-O {[%clk 00:12:51]} {[%emt 00:00:18]} 9. O-O
{[%clk 00:14:07]} {[%emt 00:00:11]} d5 {[%clk 00:11:47]} {[%emt 00:01:08]} 10.
Ne5 {[%clk 00:13:20]} {[%emt 00:00:51]} Bxd2 {[%clk 00:11:17]} {[%emt
00:00:36]} 11. Qxd2 {[%clk 00:13:20]} {[%emt 00:00:05]} Nc6 {[%clk 00:10:23]}
{[%emt 00:01:00]} 12. Nxc6 {[%clk 00:12:51]} {[%emt 00:00:34]} bxc6 {[%clk
00:10:25]} {[%emt 00:00:02]} 13. Qc2 {[%clk 00:12:53]} {[%emt 00:00:03]} Qd6
{[%clk 00:08:04]} {[%emt 00:02:26]} 14. Bxh7+ {[%clk 00:12:45]} {[%emt
00:00:14]} Kh8 {[%clk 00:08:08]} {[%emt 00:00:01]} 15. Bd3 {[%clk 00:12:39]}
{[%emt 00:00:10]} Bd7 {[%clk 00:08:02]} {[%emt 00:00:11]} 16. Rac1 {[%clk
00:12:04]} {[%emt 00:00:39]} Rab8 {[%clk 00:07:15]} {[%emt 00:00:53]} 17. Qe2
{[%clk 00:10:04]} {[%emt 00:02:05]} g6 {[%clk 00:06:25]} {[%emt 00:00:55]} 18.
Rc3 {[%clk 00:09:57]} {[%emt 00:00:12]} Kg7 {[%clk 00:05:59]} {[%emt 00:00:31]}
19. Rfc1 {[%clk 00:07:39]} {[%emt 00:02:23]} Rh8 {[%clk 00:05:58]} {[%emt
00:00:07]} 20. h3 {[%clk 00:06:58]} {[%emt 00:00:46]} Qf4 {[%clk 00:05:40]}
{[%emt 00:00:22]} 21. Rd1 {[%clk 00:05:23]} {[%emt 00:01:40]} Rb4 {[%clk
00:04:23]} {[%emt 00:01:22]} 22. Ra3 {[%clk 00:05:27]} {[%emt 00:00:02]} Rb7
{[%clk 00:04:05]} {[%emt 00:00:23]} 23. Qe5+ {[%clk 00:04:32]} {[%emt
00:01:00]} Qxe5 {[%clk 00:04:07]} {[%emt 00:00:02]} 24. dxe5 {[%clk 00:04:36]}
{[%emt 00:00:01]} c5 {[%clk 00:04:02]} {[%emt 00:00:11]} 25. b3 {[%clk
00:04:27]} {[%emt 00:00:13]} Rh5 {[%clk 00:03:40]} {[%emt 00:00:27]} 26. f4
{[%clk 00:04:31]} {[%emt 00:00:02]} Rh4 {[%clk 00:03:44]} 27. Rf1 {[%clk
00:03:26]} {[%emt 00:01:10]} Rc7 {[%clk 00:03:46]} {[%emt 00:00:03]} 28. Kh2
{[%clk 00:03:16]} {[%emt 00:00:15]} Rh8 {[%clk 00:03:49]} {[%emt 00:00:02]} 29.
Rc1 {[%clk 00:03:14]} {[%emt 00:00:06]} Rb8 {[%clk 00:03:52]} {[%emt 00:00:02]}
30. Ra5 {[%clk 00:03:09]} {[%emt 00:00:11]} c4 {[%clk 00:03:25]} {[%emt
00:00:32]} 31. bxc4 {[%clk 00:03:11]} {[%emt 00:00:03]} dxc4 {[%clk 00:03:28]}
{[%emt 00:00:02]} 32. Rxc4 {[%clk 00:03:07]} {[%emt 00:00:08]} Rxc4 {[%clk
00:03:00]} {[%emt 00:00:34]} 33. Bxc4 {[%clk 00:03:11]} {[%emt 00:00:01]} Rb2
{[%clk 00:03:04]} 34. Rxa7 {[%clk 00:02:23]} {[%emt 00:00:53]} Bc6 {[%clk
00:03:07]} {[%emt 00:00:01]} 35. Bf1 {[%clk 00:02:14]} {[%emt 00:00:15]} Rf2
{[%clk 00:03:05]} {[%emt 00:00:07]} 36. Kg1 {[%clk 00:02:06]} {[%emt 00:00:13]}
Rxf4 {[%clk 00:03:09]} {[%emt 00:00:01]} 37. Ra5 {[%clk 00:02:04]} {[%emt
00:00:07]} Bd5 {[%clk 00:02:53]} {[%emt 00:00:21]} 38. a3 {[%clk 00:01:52]}
{[%emt 00:00:16]} Re4 {[%clk 00:02:46]} {[%emt 00:00:12]} 39. Kf2 {[%clk
00:01:40]} {[%emt 00:00:17]} Rxe5 {[%clk 00:02:49]} {[%emt 00:00:03]} 40. Bd3
{[%clk 00:01:19]} {[%emt 00:00:26]} Rg5 {[%clk 00:02:45]} {[%emt 00:00:08]} 41.
g4 {[%clk 00:01:17]} {[%emt 00:00:08]} f5 {[%clk 00:02:43]} {[%emt 00:00:07]}
42. Ra7+ {[%clk 00:01:21]} {[%emt 00:00:01]} Kf6 {[%clk 00:02:46]} {[%emt
00:00:01]} 43. Be2 {[%clk 00:01:11]} {[%emt 00:00:15]} f4 {[%clk 00:02:28]}
{[%emt 00:00:24]} 44. a4 {[%clk 00:01:15]} {[%emt 00:00:01]} Re5 {[%clk
00:02:29]} {[%emt 00:00:04]} 45. Bf3 {[%clk 00:01:16]} {[%emt 00:00:04]} Bc4
{[%clk 00:02:11]} {[%emt 00:00:23]} 46. a5 {[%clk 00:01:16]} {[%emt 00:00:05]}
Rb5 {[%clk 00:02:08]} {[%emt 00:00:06]} 47. Rc7 {[%clk 00:00:50]} {[%emt
00:00:32]} Rb2+ {[%clk 00:02:11]} {[%emt 00:00:03]} 48. Ke1 {[%clk 00:00:52]}
{[%emt 00:00:03]} Rb1+ {[%clk 00:01:57]} {[%emt 00:00:19]} 49. Kd2 {[%clk
00:00:55]} {[%emt 00:00:02]} Ba6 {[%clk 00:01:47]} {[%emt 00:00:15]} 50. Rc6
{[%clk 00:00:55]} {[%emt 00:00:04]} Bf1 {[%clk 00:01:47]} {[%emt 00:00:06]} 51.
a6 {[%clk 00:00:51]} {[%emt 00:00:08]} Ra1 {[%clk 00:01:49]} {[%emt 00:00:03]}
52. Be2 {[%clk 00:00:28]} {[%emt 00:00:29]} Ra2+ {[%clk 00:01:48]} {[%emt
00:00:06]} 53. Kd3 {[%clk 00:00:07]} {[%emt 00:00:26]} Bxe2+ {[%clk 00:01:50]}
{[%emt 00:00:02]} 0-1

[Event "Rapid Tournament (RAP)"]
[Site "Biel, Switzerland"]
[Date "2026.07.12"]
[Round "7.27"]
[White "Egli, Urs"]
[Black "Ranieri, Pierpaolo"]
[Result "1-0"]
[TimeControl "15 + 5"]
[WhiteTitle "-"]
[BlackTitle "-"]
[WhiteFideId "1306685"]
[BlackFideId "893986"]
[WhiteElo "1964"]
[BlackElo "1891"]

1. g3 {[%clk 00:15:05]} {[%emt 00:05:36]} f5 {[%clk 00:14:25]} {[%emt
00:00:49]} 2. Bg2 {[%clk 00:15:11]} {[%emt 00:00:01]} Nf6 {[%clk 00:14:29]}
{[%emt 00:00:02]} 3. c4 {[%clk 00:15:10]} {[%emt 00:00:06]} g6 {[%clk
00:14:30]} {[%emt 00:00:04]} 4. Nc3 {[%clk 00:15:08]} {[%emt 00:00:06]} Bg7
{[%clk 00:14:33]} {[%emt 00:00:03]} 5. d3 {[%clk 00:15:01]} {[%emt 00:00:12]}
O-O {[%clk 00:14:35]} {[%emt 00:00:03]} 6. Bd2 {[%clk 00:14:57]} {[%emt
00:00:08]} e5 {[%clk 00:14:31]} {[%emt 00:00:09]} 7. e3 {[%clk 00:14:50]}
{[%emt 00:00:12]} c6 {[%clk 00:14:29]} {[%emt 00:00:09]} 8. Qb3 {[%clk
00:14:07]} {[%emt 00:00:47]} d6 {[%clk 00:14:08]} {[%emt 00:00:27]} 9. Nge2
{[%clk 00:13:54]} {[%emt 00:00:17]} Qe7 {[%clk 00:14:06]} {[%emt 00:00:09]} 10.
O-O {[%clk 00:13:34]} {[%emt 00:00:24]} Na6 {[%clk 00:14:01]} {[%emt 00:00:10]}
11. Qc2 {[%clk 00:13:26]} {[%emt 00:00:13]} Nb4 {[%clk 00:13:52]} {[%emt
00:00:14]} 12. Qb1 {[%clk 00:13:26]} {[%emt 00:00:04]} a5 {[%clk 00:13:46]}
{[%emt 00:00:12]} 13. a3 {[%clk 00:13:28]} {[%emt 00:00:02]} Na6 {[%clk
00:13:49]} {[%emt 00:00:03]} 14. b4 {[%clk 00:13:05]} {[%emt 00:00:27]} e4
{[%clk 00:11:57]} {[%emt 00:01:58]} 15. dxe4 {[%clk 00:12:46]} {[%emt
00:00:24]} Nxe4 {[%clk 00:11:55]} {[%emt 00:00:07]} 16. Nxe4 {[%clk 00:11:38]}
{[%emt 00:01:12]} Bxa1 {[%clk 00:11:28]} {[%emt 00:00:32]} 17. N4c3 {[%clk
00:10:14]} {[%emt 00:01:28]} Bxc3 {[%clk 00:11:30]} {[%emt 00:00:04]} 18. Bxc3
{[%clk 00:10:10]} {[%emt 00:00:09]} axb4 {[%clk 00:11:29]} {[%emt 00:00:07]} 19.
axb4 {[%clk 00:10:13]} {[%emt 00:00:02]} Be6 {[%clk 00:11:08]} {[%emt
00:00:26]} 20. Qd3 {[%clk 00:09:57]} {[%emt 00:00:19]} h6 {[%clk 00:09:30]}
{[%emt 00:01:44]} 21. Nf4 {[%clk 00:09:27]} {[%emt 00:00:35]} Kh7 {[%clk
00:09:09]} {[%emt 00:00:26]} 22. Re1 {[%clk 00:07:26]} {[%emt 00:02:06]} Qf7
{[%clk 00:05:59]} {[%emt 00:03:15]} 23. Nxe6 {[%clk 00:06:07]} {[%emt
00:01:24]} Qxe6 {[%clk 00:06:01]} {[%emt 00:00:02]} 24. Qd4 {[%clk 00:05:43]}
{[%emt 00:00:30]} Qf7 {[%clk 00:05:05]} {[%emt 00:01:01]} 25. b5 {[%clk
00:04:58]} {[%emt 00:00:50]} Nc5 {[%clk 00:04:05]} {[%emt 00:01:06]} 26. bxc6
{[%clk 00:04:50]} {[%emt 00:00:13]} bxc6 {[%clk 00:04:08]} {[%emt 00:00:02]} 27.
Bxc6 {[%clk 00:04:45]} {[%emt 00:00:09]} Ra2 {[%clk 00:04:10]} {[%emt
00:00:03]} 28. Qxd6 {[%clk 00:03:59]} {[%emt 00:00:51]} Ne4 {[%clk 00:04:00]}
{[%emt 00:00:15]} 29. Qd4 {[%clk 00:03:04]} {[%emt 00:01:01]} Nxf2 {[%clk
00:03:28]} {[%emt 00:00:36]} 30. Rb1 {[%clk 00:02:57]} {[%emt 00:00:11]} Nh3+
{[%clk 00:02:41]} {[%emt 00:00:53]} 31. Kf1 {[%clk 00:02:51]} {[%emt 00:00:11]}
Ra7 {[%clk 00:01:39]} {[%emt 00:01:07]} 32. Bd5 {[%clk 00:02:06]} {[%emt
00:00:51]} Qc7 {[%clk 00:01:15]} {[%emt 00:00:28]} 33. Qxa7 {[%clk 00:01:44]}
{[%emt 00:00:27]} Qd7 {[%emt 00:00:21]} 1-0

[Event "Rapid Tournament (RAP)"]
[Site "Biel, Switzerland"]
[Date "2026.07.12"]
[Round "7.28"]
[White "Tan, Jimmy"]
[Black "Alexakis, Dimitrios"]
[Result "1-0"]
[TimeControl "15 + 5"]
[WhiteTitle "-"]
[BlackTitle "-"]
[WhiteFideId "129057499"]
[BlackFideId "4200527"]
[WhiteElo "1845"]
[BlackElo "1954"]

1. d4 {[%clk 00:15:07]} {[%emt 00:00:02]} Nf6 {[%clk 00:14:44]} {[%emt
00:00:26]} 2. Bf4 {[%clk 00:15:10]} {[%emt 00:00:04]} d6 {[%clk 00:14:46]}
{[%emt 00:00:02]} 3. Nc3 {[%clk 00:15:13]} {[%emt 00:00:02]} g6 {[%clk
00:14:49]} {[%emt 00:00:02]} 4. e4 {[%clk 00:15:16]} {[%emt 00:00:03]} Bg7
{[%clk 00:14:53]} 5. Nf3 {[%clk 00:15:10]} {[%emt 00:00:10]} O-O {[%clk
00:14:49]} {[%emt 00:00:09]} 6. Qd2 {[%clk 00:15:08]} {[%emt 00:00:07]} c5
{[%clk 00:14:43]} {[%emt 00:00:12]} 7. dxc5 {[%clk 00:14:21]} {[%emt 00:00:51]}
dxc5 {[%clk 00:14:46]} {[%emt 00:00:02]} 8. O-O-O {[%clk 00:13:20]} {[%emt
00:01:06]} Qa5 {[%clk 00:14:30]} {[%emt 00:00:21]} 9. e5 {[%clk 00:12:14]}
{[%emt 00:01:11]} Nh5 {[%clk 00:13:49]} {[%emt 00:00:45]} 10. Be3 {[%clk
00:11:58]} {[%emt 00:00:21]} Nc6 {[%clk 00:13:35]} {[%emt 00:00:19]} 11. Qd5
{[%clk 00:09:06]} {[%emt 00:02:58]} Nb4 {[%clk 00:10:04]} {[%emt 00:03:35]} 12.
Qxc5 {[%clk 00:08:55]} {[%emt 00:00:16]} Nxa2+ {[%clk 00:10:07]} {[%emt
00:00:02]} 13. Nxa2 {[%clk 00:08:58]} {[%emt 00:00:02]} Qxa2 {[%clk 00:10:10]}
{[%emt 00:00:01]} 14. Qa3 {[%clk 00:07:06]} {[%emt 00:01:58]} Qxa3 {[%clk
00:10:02]} {[%emt 00:00:13]} 15. bxa3 {[%clk 00:07:10]} Bg4 {[%clk 00:09:58]}
{[%emt 00:00:08]} 16. Be2 {[%clk 00:05:39]} {[%emt 00:01:37]} Bxe5 {[%clk
00:07:43]} {[%emt 00:02:20]} 17. Nxe5 {[%clk 00:04:05]} {[%emt 00:01:40]} Bxe2
{[%clk 00:07:45]} {[%emt 00:00:02]} 18. Rd7 {[%clk 00:03:34]} {[%emt 00:00:37]}
f6 {[%clk 00:07:02]} {[%emt 00:00:47]} 19. Re1 {[%clk 00:03:15]} {[%emt
00:00:24]} Bb5 {[%clk 00:06:21]} {[%emt 00:00:45]} 20. Rd5 {[%clk 00:02:41]}
{[%emt 00:00:40]} Ba6 {[%clk 00:05:27]} {[%emt 00:00:59]} 21. Nd7 {[%clk
00:02:29]} {[%emt 00:00:17]} Rfc8 {[%clk 00:04:55]} {[%emt 00:00:37]} 22. Bc5
{[%clk 00:01:26]} {[%emt 00:01:08]} Nf4 {[%clk 00:03:41]} {[%emt 00:01:19]} 23.
Rd4 {[%clk 00:01:02]} {[%emt 00:00:29]} e5 {[%clk 00:03:14]} {[%emt 00:00:31]}
24. Rd6 {[%clk 00:00:40]} {[%emt 00:00:28]} b6 {[%clk 00:02:59]} {[%emt
00:00:20]} 25. Nxf6+ {[%clk 00:00:17]} {[%emt 00:00:28]} Kf7 {[%clk 00:02:39]}
{[%emt 00:00:25]} 26. Ne4 {[%clk 00:00:19]} {[%emt 00:00:03]} bxc5 {[%clk
00:02:33]} {[%emt 00:00:11]} 27. Rxa6 {[%clk 00:00:23]} Rc7 {[%clk 00:02:08]}
{[%emt 00:00:30]} 28. Ng5+ {[%clk 00:00:19]} {[%emt 00:00:09]} Kg8 {[%clk
00:02:05]} {[%emt 00:00:08]} 29. g3 {[%clk 00:00:15]} {[%emt 00:00:09]} Nd5
{[%clk 00:01:59]} {[%emt 00:00:11]} 30. Rxe5 {[%clk 00:00:16]} {[%emt
00:00:04]} Nb6 {[%clk 00:01:51]} {[%emt 00:00:13]} 31. Ne4 {[%clk 00:00:14]}
{[%emt 00:00:08]} Rac8 {[%clk 00:01:38]} {[%emt 00:00:17]} 32. Nf6+ {[%clk
00:00:17]} {[%emt 00:00:02]} Kf7 {[%clk 00:01:33]} {[%emt 00:00:11]} 33. Nd5
{[%clk 00:00:14]} {[%emt 00:00:07]} Rb7 {[%clk 00:01:26]} {[%emt 00:00:11]} 34.
Nxb6 {[%clk 00:00:13]} {[%emt 00:00:07]} axb6 {[%clk 00:01:29]} {[%emt
00:00:01]} 35. Ra4 {[%clk 00:00:16]} {[%emt 00:00:03]} b5 {[%clk 00:01:14]}
{[%emt 00:00:20]} 36. Rf4+ {[%clk 00:00:20]} {[%emt 00:00:01]} Kg7 {[%clk
00:01:18]} 37. Rfe4 {[%clk 00:00:23]} {[%emt 00:00:03]} Ra8 {[%clk 00:01:16]}
{[%emt 00:00:07]} 38. Kb2 {[%clk 00:00:24]} {[%emt 00:00:04]} c4 {[%clk
00:01:13]} {[%emt 00:00:07]} 39. Re7+ {[%clk 00:00:27]} {[%emt 00:00:02]} Rxe7
{[%clk 00:01:15]} {[%emt 00:00:03]} 40. Rxe7+ {[%clk 00:00:31]} Kh6 {[%clk
00:01:14]} {[%emt 00:00:06]} 41. Rb7 {[%clk 00:00:35]} Ra5 {[%clk 00:01:13]}
{[%emt 00:00:06]} 42. h4 {[%clk 00:00:33]} {[%emt 00:00:07]} g5 {[%clk
00:00:46]} {[%emt 00:00:32]} 43. hxg5+ {[%clk 00:00:37]} Kxg5 {[%clk 00:00:50]}
{[%emt 00:00:01]} 44. Rxh7 {[%clk 00:00:41]} {[%emt 00:00:01]} Kg4 {[%clk
00:00:50]} {[%emt 00:00:05]} 45. Rf7 {[%clk 00:00:37]} {[%emt 00:00:09]} Ra4
{[%clk 00:00:35]} {[%emt 00:00:21]} 46. Rf4+ {[%clk 00:00:40]} {[%emt
00:00:01]} Kg5 {[%clk 00:00:38]} {[%emt 00:00:02]} 47. Rd4 {[%clk 00:00:35]}
{[%emt 00:00:02]} c3+ {[%clk 00:00:36]} {[%emt 00:00:15]} 48. Kxc3 {[%clk
00:00:39]} {[%emt 00:00:01]} Rxa3+ {[%clk 00:00:40]} 49. Kd2 {[%clk 00:00:29]}
{[%emt 00:00:15]} Rf3 {[%clk 00:00:31]} {[%emt 00:00:14]} 50. Ke2 {[%clk
00:00:26]} {[%emt 00:00:08]} Rf5 {[%clk 00:00:34]} {[%emt 00:00:02]} 51. f3
{[%clk 00:00:24]} {[%emt 00:00:07]} Rc5 {[%clk 00:00:36]} {[%emt 00:00:03]} 52.
Kd3 {[%clk 00:00:23]} {[%emt 00:00:06]} Kf5 {[%clk 00:00:33]} {[%emt 00:00:08]}
53. Rb4 {[%clk 00:00:12]} {[%emt 00:00:17]} Kg5 {[%clk 00:00:31]} {[%emt
00:00:07]} 54. c4 {[%clk 00:00:10]} {[%emt 00:00:06]} bxc4+ {[%clk 00:00:32]}
{[%emt 00:00:04]} 55. Rxc4 {[%clk 00:00:14]} {[%emt 00:00:01]} Rd5+ {[%clk
00:00:34]} {[%emt 00:00:03]} 56. Ke4 {[%clk 00:00:19]} {[%emt 00:00:01]} Ra5
{[%clk 00:00:35]} {[%emt 00:00:04]} 57. Rd4 {[%clk 00:00:23]} Ra3 {[%clk
00:00:37]} {[%emt 00:00:03]} 58. Rd5+ {[%clk 00:00:25]} {[%emt 00:00:04]} Kg6
{[%clk 00:00:41]} 59. g4 {[%clk 00:00:27]} {[%emt 00:00:02]} Kf6 {[%clk
00:00:39]} {[%emt 00:00:08]} 60. f4 {[%clk 00:00:28]} {[%emt 00:00:03]} Ra4+
{[%clk 00:00:41]} {[%emt 00:00:02]} 61. Rd4 {[%clk 00:00:33]} Ra5 {[%clk
00:00:44]} {[%emt 00:00:04]} 62. Rd6+ {[%clk 00:00:35]} {[%emt 00:00:02]} Ke7
{[%clk 00:00:47]} {[%emt 00:00:02]} 63. Rd4 {[%clk 00:00:35]} {[%emt 00:00:05]}
Kf6 {[%clk 00:00:51]} {[%emt 00:00:01]} 64. g5+ {[%clk 00:00:36]} {[%emt
00:00:04]} Kg6 {[%clk 00:00:49]} {[%emt 00:00:07]} 65. Rd6+ {[%clk 00:00:39]}
{[%emt 00:00:01]} Kf7 {[%clk 00:00:54]} 66. f5 {[%clk 00:00:40]} {[%emt
00:00:05]} Ke7 {[%clk 00:00:56]} {[%emt 00:00:03]} 67. Rd5 {[%clk 00:00:40]}
{[%emt 00:00:04]} Ra4+ {[%clk 00:00:58]} {[%emt 00:00:03]} 68. Ke5 {[%clk
00:00:44]} Rg4 {[%clk 00:01:02]} {[%emt 00:00:01]} 69. f6+ {[%clk 00:00:43]}
{[%emt 00:00:06]} Kf7 {[%clk 00:01:04]} {[%emt 00:00:03]} 70. Kf5 {[%clk
00:00:47]} Rg1 {[%clk 00:01:06]} {[%emt 00:00:03]} 71. Rd7+ {[%clk 00:00:50]}
{[%emt 00:00:02]} Kf8 {[%clk 00:01:06]} {[%emt 00:00:05]} 72. Kg6 {[%clk
00:00:52]} {[%emt 00:00:03]} Kg8 {[%clk 00:01:08]} {[%emt 00:00:03]} 73. Rd8#
{[%clk 00:00:00]} {[%emt 00:00:02]} 1-0

[Event "Rapid Tournament (RAP)"]
[Site "Biel, Switzerland"]
[Date "2026.07.12"]
[Round "7.29"]
[White "Grzeskowiak, Antoni"]
[Black "Schwab, Felix"]
[Result "1-0"]
[TimeControl "15 + 5"]
[WhiteTitle "-"]
[BlackTitle "-"]
[WhiteFideId "41855531"]
[BlackFideId "1311450"]
[WhiteElo "1844"]
[BlackElo "1945"]

1. d4 {[%clk 00:15:08]} {[%emt 00:00:04]} Nf6 {[%clk 00:15:09]} 2. Nf3 {[%clk
00:15:11]} d5 {[%clk 00:15:13]} 3. Bf4 {[%clk 00:15:15]} c5 {[%clk 00:15:18]} 4.
c3 {[%clk 00:15:19]} {[%emt 00:00:02]} Nc6 {[%clk 00:15:22]} {[%emt 00:00:03]}
5. e3 {[%clk 00:15:21]} Qb6 {[%clk 00:15:04]} {[%emt 00:00:23]} 6. Qb3 {[%clk
00:15:25]} c4 {[%clk 00:15:02]} {[%emt 00:00:07]} 7. Qc2 {[%clk 00:15:29]}
{[%emt 00:00:01]} Bf5 {[%clk 00:14:58]} {[%emt 00:00:10]} 8. Qc1 {[%clk
00:15:33]} Nh5 {[%clk 00:14:17]} {[%emt 00:00:46]} 9. Bg5 {[%clk 00:15:27]}
{[%emt 00:00:12]} h6 {[%clk 00:14:12]} {[%emt 00:00:09]} 10. Bh4 {[%clk
00:15:31]} {[%emt 00:00:02]} g5 {[%clk 00:13:55]} {[%emt 00:00:21]} 11. Bg3
{[%clk 00:15:34]} {[%emt 00:00:02]} Nxg3 {[%clk 00:13:54]} {[%emt 00:00:07]} 12.
hxg3 {[%clk 00:15:37]} {[%emt 00:00:02]} Bg7 {[%clk 00:13:56]} {[%emt
00:00:02]} 13. Nbd2 {[%clk 00:15:36]} {[%emt 00:00:07]} e5 {[%clk 00:13:50]}
{[%emt 00:00:11]} 14. dxe5 {[%clk 00:15:01]} {[%emt 00:00:40]} Bxe5 {[%clk
00:13:02]} {[%emt 00:00:52]} 15. Be2 {[%clk 00:14:11]} {[%emt 00:00:55]} Qc7
{[%clk 00:10:27]} {[%emt 00:02:40]} 16. Nxe5 {[%clk 00:13:17]} {[%emt
00:01:00]} Nxe5 {[%clk 00:10:23]} {[%emt 00:00:09]} 17. Nf3 {[%clk 00:12:43]}
{[%emt 00:00:39]} O-O-O {[%clk 00:09:00]} {[%emt 00:01:28]} 18. Nxe5 {[%clk
00:12:12]} {[%emt 00:00:36]} Qxe5 {[%clk 00:09:00]} {[%emt 00:00:05]} 19. Qd1
{[%clk 00:12:13]} {[%emt 00:00:04]} h5 {[%clk 00:06:46]} {[%emt 00:02:19]} 20.
Qa4 {[%clk 00:11:37]} {[%emt 00:00:42]} Kb8 {[%clk 00:06:17]} {[%emt 00:00:33]}
21. Rd1 {[%clk 00:11:38]} {[%emt 00:00:04]} h4 {[%clk 00:05:53]} {[%emt
00:00:28]} 22. gxh4 {[%clk 00:11:29]} {[%emt 00:00:15]} Rxh4 {[%clk 00:05:40]}
{[%emt 00:00:18]} 23. Rxh4 {[%clk 00:10:46]} {[%emt 00:00:48]} gxh4 {[%clk
00:05:42]} {[%emt 00:00:02]} 24. Qa5 {[%clk 00:10:42]} {[%emt 00:00:11]} b6
{[%clk 00:05:13]} {[%emt 00:00:34]} 25. Qb5 {[%clk 00:10:05]} {[%emt 00:00:41]}
Be4 {[%clk 00:03:42]} {[%emt 00:01:36]} 26. Bf1 {[%clk 00:05:50]} {[%emt
00:04:20]} Rg8 {[%clk 00:03:16]} {[%emt 00:00:31]} 27. Qd7 {[%clk 00:05:02]}
{[%emt 00:00:53]} Bf5 {[%clk 00:02:16]} {[%emt 00:01:04]} 28. Qxd5 {[%clk
00:04:56]} {[%emt 00:00:12]} Qxd5 {[%clk 00:01:48]} {[%emt 00:00:33]} 29. Rxd5
{[%clk 00:04:59]} {[%emt 00:00:02]} Be6 {[%clk 00:01:41]} {[%emt 00:00:11]} 30.
Rh5 {[%clk 00:04:53]} {[%emt 00:00:12]} h3 {[%clk 00:01:10]} {[%emt 00:00:36]}
31. gxh3 {[%clk 00:04:39]} {[%emt 00:00:20]} Rg1 {[%clk 00:01:12]} {[%emt
00:00:03]} 32. f3 {[%clk 00:04:35]} {[%emt 00:00:08]} a6 {[%clk 00:01:05]}
{[%emt 00:00:12]} 33. Kf2 {[%clk 00:04:32]} {[%emt 00:00:08]} Rg8 {[%clk
00:01:02]} {[%emt 00:00:08]} 34. Rh4 {[%clk 00:04:25]} {[%emt 00:00:12]} b5
{[%clk 00:01:03]} {[%emt 00:00:05]} 35. Rd4 {[%clk 00:03:59]} {[%emt 00:00:30]}
Kc7 {[%clk 00:00:54]} {[%emt 00:00:14]} 36. h4 {[%clk 00:03:49]} {[%emt
00:00:15]} Rh8 {[%clk 00:00:32]} {[%emt 00:00:27]} 37. Bg2 {[%clk 00:03:27]}
{[%emt 00:00:27]} a5 {[%clk 00:00:33]} {[%emt 00:00:04]} 38. a3 {[%clk
00:03:10]} {[%emt 00:00:22]} b4 {[%clk 00:00:19]} {[%emt 00:00:19]} 39. axb4
{[%clk 00:02:58]} {[%emt 00:00:18]} axb4 {[%clk 00:00:22]} 40. Bf1 {[%clk
00:03:01]} {[%emt 00:00:02]} bxc3 {[%clk 00:00:23]} {[%emt 00:00:05]} 41. bxc3
{[%clk 00:03:03]} {[%emt 00:00:03]} Rb8 {[%clk 00:00:11]} {[%emt 00:00:16]} 42.
Bxc4 {[%clk 00:03:04]} {[%emt 00:00:05]} Rb2+ {[%clk 00:00:13]} {[%emt
00:00:03]} 43. Kg3 {[%clk 00:03:06]} {[%emt 00:00:02]} Re2 {[%emt 00:00:13]}
1-0